[Event "Kwalificatie NJK A Groningen"]
[Site "Hoogkerk, Netherlands"]
[Date "2023.02.19"]
[Round "5.11"]
[White "Dyksinski, Patryk"]
[Black "Pijls, Coun"]
[Result "1/2-1/2"]
[TimeControl "55 min. + 10 sec./zet"]
[WhiteElo "944"]
[BlackElo "1651"]

1. e4 {[%emt 12:37:15]} e5 {[%emt 00:00:20]} 2. Nf3 {[%emt 00:00:20]} Nf6
{[%emt 00:00:08]} 3. d3 {[%emt 00:00:10]} d5 {[%emt 00:02:06]} 4. Nc3 {[%emt
00:00:24]} Bb4 {[%emt 00:00:47]} 5. Bd2 {[%emt 00:00:25]} O-O {[%emt 00:01:18]}
6. Nxe5 {[%emt 00:00:53]} Bxc3 {[%emt 00:01:15]} 7. Bxc3 {[%emt 00:00:33]} dxe4
{[%emt 00:00:13]} 8. Be2 {[%emt 00:01:22]} Nbd7 {[%emt 00:01:31]} 9. O-O {[%emt
00:03:00]} Qe7 {[%emt 00:10:32]} 10. Nc4 {[%emt 00:02:32]} b6 {[%emt 00:01:46]}
11. Qd2 {[%emt 00:01:08]} Bb7 {[%emt 00:00:55]} 12. Rfe1 {[%emt 00:00:36]} Nc5
{[%emt 00:02:18]} 13. Bb4 {[%emt 00:01:07]} b5 {[%emt 00:04:30]} 14. Na5 {[%emt
00:01:48]} Rab8 {[%emt 00:03:46]} 15. Nb3 {[%emt 00:00:53]} Nxb3 {[%emt
00:03:50]} 16. axb3 {[%emt 00:00:45]} c5 {[%emt 00:00:19]} 17. Bc3 {[%emt
00:00:32]} b4 {[%emt 00:00:57]} 18. Bxf6 {[%emt 00:00:12]} Qxf6 {[%emt
00:00:05]} 19. c4 {[%emt 00:00:47]} a6 {[%emt 00:00:24]} 20. dxe4 {[%emt
00:00:33]} Rbd8 {[%emt 00:00:29]} 21. Qc2 {[%emt 00:01:20]} Rd4 {[%emt
00:04:00]} 22. Bf3 {[%emt 00:00:24]} Qf4 {[%emt 00:01:25]} 23. Rad1 {[%emt
00:00:33]} Rfd8 {[%emt 00:00:33]} 24. Qc1 {[%emt 00:02:12]} Rxd1 {[%emt
00:02:41]} 1/2-1/2

[Event "Kwalificatie NJK A Groningen"]
[Site "Hoogkerk, Netherlands"]
[Date "2023.02.19"]
[Round "6.1"]
[White "Moskalets, Sofia"]
[Black "Wierenga, JaÃ«l"]
[Result "1/2-1/2"]
[TimeControl "55 min. + 10 sec./zet"]
[WhiteElo "1675"]
[BlackElo "1879"]

1. d4 {[%clk 00:55:18]} {[%emt 00:00:02]} d5 {[%clk 00:54:47]} {[%emt
00:00:34]} 2. Nc3 {[%clk 00:55:15]} {[%emt 00:00:13]} e6 {[%clk 00:54:03]}
{[%emt 00:00:54]} 3. e4 {[%clk 00:53:22]} {[%emt 00:02:02]} Nf6 {[%clk
00:53:16]} {[%emt 00:00:57]} 4. Bg5 {[%clk 00:53:20]} {[%emt 00:00:11]} dxe4
{[%clk 00:52:49]} {[%emt 00:00:37]} 5. Nxe4 {[%clk 00:53:11]} {[%emt 00:00:20]}
Be7 {[%clk 00:52:55]} {[%emt 00:00:04]} 6. Bxf6 {[%clk 00:52:49]} {[%emt
00:00:33]} Bxf6 {[%clk 00:52:42]} {[%emt 00:00:22]} 7. Nf3 {[%clk 00:52:38]}
{[%emt 00:00:21]} O-O {[%clk 00:52:25]} {[%emt 00:00:27]} 8. c3 {[%clk
00:51:54]} {[%emt 00:00:54]} Nd7 {[%clk 00:51:58]} {[%emt 00:00:37]} 9. Bd3
{[%clk 00:50:36]} {[%emt 00:01:28]} b6 {[%clk 00:45:43]} {[%emt 00:06:25]} 10.
Qe2 {[%clk 00:48:38]} {[%emt 00:02:08]} Bb7 {[%clk 00:45:09]} {[%emt 00:00:44]}
11. O-O-O {[%clk 00:42:59]} {[%emt 00:05:48]} Rc8 {[%clk 00:41:37]} {[%emt
00:03:43]} 12. Kb1 {[%clk 00:39:51]} {[%emt 00:03:18]} Qe7 {[%clk 00:40:55]}
{[%emt 00:00:52]} 13. g4 {[%clk 00:34:51]} {[%emt 00:05:10]} g6 {[%clk
00:37:50]} {[%emt 00:03:15]} 14. Bc2 {[%clk 00:31:19]} {[%emt 00:03:41]} Rfd8
{[%clk 00:33:34]} {[%emt 00:04:26]} 15. Rhe1 {[%clk 00:28:15]} {[%emt
00:03:14]} c5 {[%clk 00:27:47]} {[%emt 00:05:57]} 16. g5 {[%clk 00:26:29]}
{[%emt 00:01:57]} Bg7 {[%clk 00:27:46]} {[%emt 00:00:10]} 17. h4 {[%clk
00:24:50]} {[%emt 00:01:50]} cxd4 {[%clk 00:25:53]} {[%emt 00:02:03]} 18. Nxd4
{[%clk 00:18:31]} {[%emt 00:06:29]} Nc5 {[%clk 00:23:58]} {[%emt 00:02:02]} 19.
f3 {[%clk 00:16:23]} {[%emt 00:02:21]} Ba6 {[%clk 00:21:37]} {[%emt 00:02:30]}
20. Qh2 {[%clk 00:14:07]} {[%emt 00:02:26]} Qc7 {[%clk 00:18:39]} {[%emt
00:03:06]} 21. Qxc7 {[%clk 00:11:44]} {[%emt 00:02:35]} Rxc7 {[%clk 00:18:47]}
{[%emt 00:00:02]} 22. f4 {[%clk 00:08:07]} {[%emt 00:03:48]} Nxe4 {[%clk
00:13:24]} {[%emt 00:05:33]} 23. Bxe4 {[%clk 00:05:10]} {[%emt 00:03:07]} Rcd7
{[%clk 00:12:50]} {[%emt 00:00:43]} 24. Kc2 {[%clk 00:04:31]} {[%emt 00:00:49]}
Bxd4 {[%clk 00:12:29]} {[%emt 00:00:32]} 25. Rxd4 {[%clk 00:04:24]} {[%emt
00:00:17]} Rxd4 {[%clk 00:12:34]} {[%emt 00:00:05]} 26. cxd4 {[%clk 00:04:31]}
{[%emt 00:00:03]} Rxd4 {[%clk 00:12:40]} {[%emt 00:00:04]} 27. b3 {[%clk
00:03:49]} {[%emt 00:00:52]} Kf8 {[%clk 00:12:14]} {[%emt 00:00:36]} 28. Kc3
{[%clk 00:03:39]} {[%emt 00:00:20]} Rd7 {[%clk 00:12:05]} {[%emt 00:00:19]} 29.
h5 {[%clk 00:03:09]} {[%emt 00:00:40]} Bb7 {[%emt 00:03:46]} 30. Bxb7 {[%clk
00:02:41]} {[%emt 00:00:36]} 1/2-1/2

[Event "Kwalificatie NJK A Groningen"]
[Site "Hoogkerk, Netherlands"]
[Date "2023.02.19"]
[Round "6.2"]
[White "Alvares, Thomas"]
[Black "Slagboom, Leandro"]
[Result "1/2-1/2"]
[TimeControl "55 min. + 10 sec./zet"]
[WhiteElo "1855"]
[BlackElo "2201"]

1. e4 {[%clk 00:55:17]} {[%emt 00:00:02]} c5 {[%clk 00:54:30]} {[%emt
00:00:51]} 2. Nf3 {[%clk 00:55:17]} {[%emt 00:00:09]} a6 {[%clk 00:54:36]}
{[%emt 00:00:04]} 3. c3 {[%clk 00:54:49]} {[%emt 00:00:38]} d5 {[%clk
00:54:40]} {[%emt 00:00:07]} 4. exd5 {[%clk 00:53:57]} {[%emt 00:01:02]} Qxd5
{[%clk 00:54:44]} 5. d4 {[%clk 00:53:37]} {[%emt 00:00:36]} Nc6 {[%clk
00:54:29]} {[%emt 00:00:25]} 6. Be3 {[%clk 00:53:13]} {[%emt 00:00:33]} Nf6
{[%clk 00:52:50]} {[%emt 00:01:49]} 7. Be2 {[%clk 00:49:15]} {[%emt 00:04:09]}
cxd4 {[%clk 00:52:45]} {[%emt 00:00:14]} 8. cxd4 {[%clk 00:48:55]} {[%emt
00:00:30]} e6 {[%clk 00:52:38]} {[%emt 00:00:17]} 9. h3 {[%clk 00:47:44]}
{[%emt 00:01:21]} Bd6 {[%clk 00:49:59]} {[%emt 00:02:49]} 10. Nc3 {[%clk
00:47:04]} {[%emt 00:00:50]} Qa5 {[%clk 00:49:37]} {[%emt 00:00:32]} 11. O-O
{[%clk 00:46:18]} {[%emt 00:00:57]} O-O {[%clk 00:49:33]} {[%emt 00:00:14]} 12.
Nd2 {[%clk 00:38:19]} {[%emt 00:08:09]} b5 {[%clk 00:46:54]} {[%emt 00:02:49]}
13. Bf3 {[%clk 00:35:44]} {[%emt 00:02:45]} Qc7 {[%clk 00:38:38]} {[%emt
00:08:26]} 14. Rc1 {[%clk 00:33:56]} {[%emt 00:01:57]} Bb7 {[%clk 00:38:09]}
{[%emt 00:00:39]} 15. Nde4 {[%clk 00:27:43]} {[%emt 00:06:23]} Nxe4 {[%clk
00:29:26]} {[%emt 00:08:53]} 1/2-1/2

[Event "Kwalificatie NJK A Groningen"]
[Site "Hoogkerk, Netherlands"]
[Date "2023.02.19"]
[Round "6.3"]
[White "Den Heijer, Rolinde"]
[Black "Van Kuijk, Vadim"]
[Result "1/2-1/2"]
[TimeControl "55 min. + 10 sec./zet"]
[WhiteElo "1831"]
[BlackElo "2023"]

1. e4 {[%clk 00:55:18]} c6 {[%clk 00:55:13]} {[%emt 00:00:08]} 2. d4 {[%clk
00:55:25]} {[%emt 00:00:04]} d5 {[%clk 00:55:18]} {[%emt 00:00:04]} 3. f3
{[%clk 00:55:31]} {[%emt 00:00:04]} dxe4 {[%clk 00:54:34]} {[%emt 00:00:54]} 4.
fxe4 {[%clk 00:55:35]} {[%emt 00:00:05]} e5 {[%clk 00:54:41]} {[%emt 00:00:04]}
5. Nf3 {[%clk 00:55:39]} {[%emt 00:00:06]} Bg4 {[%clk 00:54:11]} {[%emt
00:00:40]} 6. Bc4 {[%clk 00:55:28]} {[%emt 00:00:22]} Nd7 {[%clk 00:50:16]}
{[%emt 00:04:05]} 7. c3 {[%clk 00:54:38]} {[%emt 00:01:00]} Bd6 {[%clk
00:33:41]} {[%emt 00:16:45]} 8. O-O {[%clk 00:54:03]} {[%emt 00:00:44]} Ngf6
{[%clk 00:28:13]} {[%emt 00:05:38]} 9. Be3 {[%clk 00:53:52]} {[%emt 00:00:20]}
Qe7 {[%clk 00:27:14]} {[%emt 00:01:11]} 10. Nbd2 {[%clk 00:49:35]} {[%emt
00:04:27]} O-O {[%clk 00:26:46]} {[%emt 00:00:37]} 11. Qc2 {[%clk 00:46:49]}
{[%emt 00:02:56]} Bh5 {[%clk 00:21:09]} {[%emt 00:05:47]} 12. Nh4 {[%clk
00:39:21]} {[%emt 00:07:39]} Bg6 {[%clk 00:19:30]} {[%emt 00:01:48]} 13. Nf5
{[%clk 00:38:13]} {[%emt 00:01:19]} Bxf5 {[%clk 00:19:35]} {[%emt 00:00:04]} 14.
Rxf5 {[%clk 00:38:14]} {[%emt 00:00:09]} exd4 {[%clk 00:14:55]} {[%emt
00:04:51]} 15. Bxd4 {[%clk 00:31:42]} {[%emt 00:06:41]} Ng4 {[%clk 00:08:25]}
{[%emt 00:06:40]} 16. Rh5 {[%clk 00:25:10]} {[%emt 00:06:42]} Bc5 {[%clk
00:06:01]} {[%emt 00:02:35]} 17. Re1 {[%clk 00:17:11]} {[%emt 00:08:09]} g6
{[%clk 00:05:03]} {[%emt 00:01:08]} 18. Rh3 {[%clk 00:15:40]} {[%emt 00:01:40]}
Nde5 {[%clk 00:05:01]} {[%emt 00:00:12]} 19. Be2 {[%clk 00:14:43]} {[%emt
00:01:07]} Rad8 {[%clk 00:04:22]} {[%emt 00:00:50]} 20. Nb3 {[%clk 00:12:14]}
{[%emt 00:02:39]} Bb6 {[%clk 00:04:04]} {[%emt 00:00:27]} 21. Kh1 {[%clk
00:11:30]} {[%emt 00:00:53]} c5 {[%clk 00:01:30]} {[%emt 00:02:45]} 22. Bg1
{[%clk 00:11:08]} {[%emt 00:00:32]} Qg5 {[%clk 00:01:03]} {[%emt 00:00:38]} 23.
Rg3 {[%clk 00:08:14]} {[%emt 00:03:04]} Qh4 {[%clk 00:00:51]} {[%emt 00:00:22]}
24. Bxg4 {[%clk 00:07:38]} {[%emt 00:00:45]} Nxg4 {[%clk 00:00:52]} {[%emt
00:00:09]} 25. Qe2 {[%clk 00:07:29]} {[%emt 00:00:19]} Nf6 {[%clk 00:00:26]}
{[%emt 00:00:36]} 26. e5 {[%clk 00:06:37]} {[%emt 00:01:02]} Rfe8 {[%clk
00:00:21]} {[%emt 00:00:15]} 27. Qf3 {[%clk 00:06:25]} {[%emt 00:00:23]} Nd7
{[%clk 00:00:14]} {[%emt 00:00:17]} 28. Re4 {[%clk 00:05:57]} {[%emt 00:00:37]}
Qe7 {[%clk 00:00:15]} {[%emt 00:00:09]} 29. Qf4 {[%clk 00:04:28]} {[%emt
00:01:39]} f5 {[%clk 00:00:13]} {[%emt 00:00:13]} 30. Qxf5 {[%clk 00:03:04]}
{[%emt 00:01:34]} Qf7 {[%clk 00:00:16]} {[%emt 00:00:07]} 31. Qg5 {[%clk
00:02:20]} {[%emt 00:00:53]} Bc7 {[%clk 00:00:15]} {[%emt 00:00:11]} 32. Rf3
{[%clk 00:02:15]} {[%emt 00:00:15]} Qe6 {[%clk 00:00:20]} {[%emt 00:00:05]} 33.
Rf1 {[%clk 00:01:40]} {[%emt 00:00:45]} b6 {[%clk 00:00:18]} {[%emt 00:00:13]}
34. Nd2 {[%clk 00:01:18]} {[%emt 00:00:32]} Nxe5 {[%clk 00:00:20]} {[%emt
00:00:08]} 35. Qe3 {[%clk 00:01:11]} {[%emt 00:00:16]} Qd7 {[%clk 00:00:16]}
{[%emt 00:00:14]} 36. Nf3 {[%clk 00:00:55]} {[%emt 00:00:26]} Ng4 {[%clk
00:00:16]} {[%emt 00:00:10]} 37. Rxe8+ {[%clk 00:00:46]} {[%emt 00:00:19]} Rxe8
{[%clk 00:00:21]} {[%emt 00:00:05]} 38. Qg5 {[%clk 00:00:53]} {[%emt 00:00:03]}
Bd8 {[%clk 00:00:18]} {[%emt 00:00:13]} 39. Qf4 {[%clk 00:00:54]} {[%emt
00:00:09]} Bc7 {[%clk 00:00:19]} {[%emt 00:00:10]} 40. Qg5 {[%clk 00:00:38]}
{[%emt 00:00:25]} Bd8 {[%clk 00:00:18]} {[%emt 00:00:11]} 41. Qf4 {[%clk
00:00:30]} {[%emt 00:00:18]} Bc7 {[%clk 00:00:18]} {[%emt 00:00:11]} 42. Qg5
{[%clk 00:00:30]} {[%emt 00:00:09]} Rf8 {[%emt 00:00:39]} 1/2-1/2

[Event "Kwalificatie NJK A Groningen"]
[Site "Hoogkerk, Netherlands"]
[Date "2023.02.19"]
[Round "6.4"]
[White "Jacobs, Yanick"]
[Black "Knol, DaniÃ«l"]
[Result "1/2-1/2"]
[TimeControl "55 min. + 10 sec./zet"]
[WhiteElo "1652"]
[BlackElo "1807"]

1. d4 {[%clk 00:55:19]} Nf6 {[%clk 00:55:18]} {[%emt 00:00:03]} 2. Bg5 {[%clk
00:55:20]} {[%emt 00:00:09]} d5 {[%clk 00:55:01]} {[%emt 00:00:26]} 3. Bxf6
{[%clk 00:55:12]} {[%emt 00:00:18]} exf6 {[%clk 00:55:00]} {[%emt 00:00:11]} 4.
e3 {[%clk 00:54:54]} {[%emt 00:00:28]} Bd6 {[%clk 00:54:58]} {[%emt 00:00:12]}
5. c4 {[%clk 00:54:37]} {[%emt 00:00:27]} dxc4 {[%clk 00:54:00]} {[%emt
00:01:09]} 6. Bxc4 {[%clk 00:54:37]} {[%emt 00:00:09]} c6 {[%clk 00:52:52]}
{[%emt 00:01:19]} 7. Nc3 {[%clk 00:54:05]} {[%emt 00:00:42]} Be6 {[%clk
00:52:33]} {[%emt 00:00:29]} 8. Qb3 {[%clk 00:51:20]} {[%emt 00:02:55]} Bxc4
{[%clk 00:51:56]} {[%emt 00:00:46]} 9. Qxc4 {[%clk 00:51:22]} {[%emt 00:00:08]}
O-O {[%clk 00:51:26]} {[%emt 00:00:41]} 10. Nf3 {[%clk 00:50:42]} {[%emt
00:00:49]} Nd7 {[%clk 00:50:59]} {[%emt 00:00:38]} 11. O-O {[%clk 00:49:45]}
{[%emt 00:01:06]} f5 {[%clk 00:50:52]} {[%emt 00:00:18]} 12. Rac1 {[%clk
00:48:21]} {[%emt 00:01:32]} Nf6 {[%clk 00:50:24]} {[%emt 00:00:39]} 13. Rfe1
{[%clk 00:47:25]} {[%emt 00:01:06]} Ne4 {[%clk 00:50:03]} {[%emt 00:00:32]} 14.
Qd3 {[%clk 00:44:12]} {[%emt 00:03:23]} Re8 {[%clk 00:49:56]} {[%emt 00:00:17]}
15. h3 {[%clk 00:43:06]} {[%emt 00:01:16]} g5 {[%clk 00:42:29]} {[%emt
00:07:36]} 16. Nd2 {[%clk 00:38:27]} {[%emt 00:04:49]} Nxd2 {[%clk 00:41:46]}
{[%emt 00:00:54]} 17. Qxd2 {[%clk 00:36:43]} {[%emt 00:01:53]} g4 {[%clk
00:41:44]} {[%emt 00:00:12]} 18. hxg4 {[%clk 00:35:41]} {[%emt 00:01:12]} fxg4
{[%clk 00:41:53]} {[%emt 00:00:01]} 19. e4 {[%clk 00:34:11]} {[%emt 00:01:40]}
Qh4 {[%clk 00:40:36]} {[%emt 00:01:27]} 20. e5 {[%clk 00:33:17]} {[%emt
00:01:04]} Bb4 {[%clk 00:36:00]} {[%emt 00:04:46]} 21. Qf4 {[%clk 00:27:34]}
{[%emt 00:05:52]} Re6 {[%clk 00:35:20]} {[%emt 00:00:52]} 22. Re4 {[%clk
00:26:54]} {[%emt 00:00:49]} Rg6 {[%clk 00:29:35]} {[%emt 00:05:55]} 23. Ne2
{[%clk 00:22:23]} {[%emt 00:04:42]} Be7 {[%clk 00:26:05]} {[%emt 00:03:39]} 24.
Qg3 {[%clk 00:21:35]} {[%emt 00:00:57]} Qg5 {[%clk 00:24:38]} {[%emt 00:01:38]}
25. Qf4 {[%clk 00:20:02]} {[%emt 00:01:43]} Qh4 {[%clk 00:23:39]} {[%emt
00:01:09]} 26. Qg3 {[%clk 00:20:06]} {[%emt 00:00:06]} 1/2-1/2

[Event "Kwalificatie NJK A Groningen"]
[Site "Hoogkerk, Netherlands"]
[Date "2023.02.19"]
[Round "6.5"]
[White "Bon, Gijs"]
[Black "Goudriaan, Rafael"]
[Result "0-1"]
[TimeControl "55 min. + 10 sec./zet"]
[WhiteElo "1669"]
[BlackElo "1882"]

1. e4 {[%clk 00:55:17]} {[%emt 00:00:02]} c6 {[%clk 00:55:19]} 2. d4 {[%clk
00:55:21]} {[%emt 00:00:07]} d5 {[%clk 00:55:28]} {[%emt 00:00:01]} 3. e5
{[%clk 00:55:25]} {[%emt 00:00:05]} c5 {[%clk 00:55:37]} {[%emt 00:00:02]} 4.
dxc5 {[%clk 00:54:56]} {[%emt 00:00:39]} e6 {[%clk 00:55:45]} {[%emt 00:00:02]}
5. a3 {[%clk 00:53:20]} {[%emt 00:01:46]} Nc6 {[%clk 00:55:35]} {[%emt
00:00:17]} 6. Nf3 {[%clk 00:46:23]} {[%emt 00:07:09]} Bxc5 {[%clk 00:55:43]}
{[%emt 00:00:02]} 7. b4 {[%clk 00:46:01]} {[%emt 00:00:32]} Bb6 {[%clk
00:55:52]} {[%emt 00:00:02]} 8. Bb2 {[%clk 00:44:38]} {[%emt 00:01:33]} Nge7
{[%clk 00:55:59]} {[%emt 00:00:01]} 9. Bd3 {[%clk 00:41:31]} {[%emt 00:03:18]}
Ng6 {[%clk 00:54:57]} {[%emt 00:01:13]} 10. O-O {[%clk 00:39:22]} {[%emt
00:02:19]} O-O {[%clk 00:55:04]} {[%emt 00:00:02]} 11. Re1 {[%clk 00:38:28]}
{[%emt 00:01:04]} Nf4 {[%clk 00:50:00]} {[%emt 00:05:14]} 12. Bf1 {[%clk
00:37:22]} {[%emt 00:01:16]} f6 {[%clk 00:49:43]} {[%emt 00:00:27]} 13. exf6
{[%clk 00:28:38]} {[%emt 00:08:54]} gxf6 {[%clk 00:49:50]} {[%emt 00:00:03]} 14.
g3 {[%clk 00:27:07]} {[%emt 00:01:42]} Ng6 {[%clk 00:49:26]} {[%emt 00:00:32]}
15. c4 {[%clk 00:25:00]} {[%emt 00:02:18]} dxc4 {[%emt 00:04:53]} 16. Qxd8 Rxd8
{[%clk 00:44:43]} 17. Bxc4 {[%clk 00:23:04]} {[%emt 00:04:14]} Kf7 {[%clk
00:42:56]} {[%emt 00:00:09]} 18. Nbd2 {[%clk 00:10:03]} {[%emt 00:13:12]} Nd4
{[%clk 00:42:40]} {[%emt 00:00:26]} 19. Nxd4 {[%clk 00:08:51]} {[%emt
00:01:21]} Bxd4 {[%clk 00:42:42]} {[%emt 00:00:09]} 20. Bxd4 {[%clk 00:08:49]}
{[%emt 00:00:12]} Rxd4 {[%clk 00:42:51]} 21. Red1 {[%clk 00:08:26]} {[%emt
00:00:32]} Ne5 {[%clk 00:42:48]} {[%emt 00:00:13]} 22. Be2 {[%clk 00:08:21]}
{[%emt 00:00:16]} Nc6 {[%clk 00:35:18]} {[%emt 00:07:40]} 23. Nb3 {[%clk
00:04:15]} {[%emt 00:04:15]} Rxd1+ {[%clk 00:33:18]} {[%emt 00:02:10]} 24. Rxd1
{[%clk 00:04:21]} {[%emt 00:00:04]} Ke7 {[%clk 00:32:31]} {[%emt 00:00:57]} 25.
b5 {[%clk 00:02:12]} {[%emt 00:02:20]} Nd8 {[%clk 00:31:45]} {[%emt 00:00:55]}
26. Nc5 {[%clk 00:00:31]} {[%emt 00:01:52]} b6 {[%clk 00:31:16]} {[%emt
00:00:39]} 27. Bf3 {[%clk 00:00:35]} {[%emt 00:00:06]} Rb8 {[%clk 00:31:22]}
{[%emt 00:00:04]} 28. Nd3 {[%clk 00:00:13]} {[%emt 00:00:33]} Bb7 {[%clk
00:31:06]} {[%emt 00:00:25]} 29. Kg2 {[%clk 00:00:13]} {[%emt 00:00:10]} Bxf3+
{[%clk 00:31:08]} {[%emt 00:00:08]} 30. Kxf3 {[%clk 00:00:21]} {[%emt
00:00:02]} Rc8 {[%clk 00:31:17]} 31. Rc1 {[%clk 00:00:12]} {[%emt 00:00:20]}
Rxc1 {[%clk 00:31:19]} {[%emt 00:00:07]} 32. Nxc1 {[%clk 00:00:20]} {[%emt
00:00:02]} Kd6 {[%clk 00:31:21]} {[%emt 00:00:07]} 33. a4 {[%clk 00:00:12]}
{[%emt 00:00:20]} Kc5 {[%clk 00:31:06]} {[%emt 00:00:23]} 34. Nd3+ {[%clk
00:00:17]} {[%emt 00:00:06]} Kc4 {[%clk 00:31:00]} {[%emt 00:00:15]} 35. Ke3
{[%clk 00:00:12]} {[%emt 00:00:15]} Nb7 {[%clk 00:30:21]} {[%emt 00:00:49]} 36.
f4 {[%clk 00:00:11]} {[%emt 00:00:11]} Kb3 {[%clk 00:30:14]} {[%emt 00:00:17]}
37. Kd4 {[%clk 00:00:12]} {[%emt 00:00:10]} Kxa4 {[%clk 00:30:09]} {[%emt
00:00:16]} 38. f5 {[%clk 00:00:12]} {[%emt 00:00:10]} exf5 {[%clk 00:30:08]}
{[%emt 00:00:11]} 39. Kd5 {[%clk 00:00:12]} {[%emt 00:00:09]} Kxb5 {[%clk
00:30:12]} {[%emt 00:00:06]} 40. Ke6 {[%clk 00:00:12]} {[%emt 00:00:10]} Nc5+
{[%clk 00:30:19]} {[%emt 00:00:03]} 0-1

[Event "Kwalificatie NJK A Groningen"]
[Site "Hoogkerk, Netherlands"]
[Date "2023.02.19"]
[Round "6.6"]
[White "Lee, Jungbin"]
[Black "Van Den Berg, Leon"]
[Result "0-1"]
[TimeControl "55 min. + 10 sec./zet"]
[WhiteElo "1640"]
[BlackElo "1766"]

1. d4 {[%clk 00:55:14]} {[%emt 00:00:02]} c5 {[%clk 00:55:09]} {[%emt
00:00:12]} 2. d5 {[%clk 00:54:48]} {[%emt 00:00:37]} e5 {[%clk 00:55:08]}
{[%emt 00:00:11]} 3. e4 {[%clk 00:54:00]} {[%emt 00:00:57]} Nf6 {[%clk
00:54:59]} {[%emt 00:00:19]} 4. Bd3 {[%clk 00:51:39]} {[%emt 00:02:31]} a6
{[%clk 00:54:06]} {[%emt 00:01:04]} 5. c4 {[%clk 00:49:53]} {[%emt 00:01:55]}
d6 {[%clk 00:54:04]} {[%emt 00:00:13]} 6. Nc3 {[%clk 00:48:37]} {[%emt
00:01:26]} Be7 {[%clk 00:53:41]} {[%emt 00:00:32]} 7. Nge2 {[%clk 00:47:13]}
{[%emt 00:01:34]} h5 {[%clk 00:51:56]} {[%emt 00:01:55]} 8. f3 {[%clk
00:43:39]} {[%emt 00:03:44]} h4 {[%clk 00:47:30]} {[%emt 00:04:36]} 9. Be3
{[%clk 00:42:05]} {[%emt 00:01:43]} Nh5 {[%clk 00:46:09]} {[%emt 00:01:32]} 10.
Qd2 {[%clk 00:38:40]} {[%emt 00:03:35]} g5 {[%clk 00:45:12]} {[%emt 00:01:07]}
11. g3 {[%clk 00:34:14]} {[%emt 00:04:35]} Ng7 {[%clk 00:40:25]} {[%emt
00:04:58]} 12. O-O-O {[%clk 00:31:22]} {[%emt 00:03:02]} f5 {[%clk 00:38:18]}
{[%emt 00:02:16]} 13. exf5 {[%clk 00:23:16]} {[%emt 00:08:16]} Nxf5 {[%clk
00:36:07]} {[%emt 00:02:22]} 14. Bxf5 {[%clk 00:20:06]} {[%emt 00:03:20]} Bxf5
{[%clk 00:36:06]} {[%emt 00:00:12]} 15. gxh4 {[%clk 00:20:08]} {[%emt
00:00:07]} Rxh4 {[%clk 00:34:28]} {[%emt 00:01:48]} 16. Rdg1 {[%clk 00:19:58]}
{[%emt 00:00:19]} g4 {[%clk 00:33:05]} {[%emt 00:01:35]} 17. fxg4 {[%clk
00:19:16]} {[%emt 00:00:51]} Bg6 {[%clk 00:31:51]} {[%emt 00:01:24]} 18. Ng3
{[%clk 00:16:18]} {[%emt 00:03:07]} Rxg4 {[%clk 00:25:41]} {[%emt 00:06:21]} 19.
h3 {[%clk 00:16:03]} {[%emt 00:00:25]} Rxc4 {[%clk 00:25:42]} {[%emt 00:00:10]}
20. b3 {[%clk 00:14:17]} {[%emt 00:01:56]} Rb4 {[%clk 00:18:41]} {[%emt
00:07:10]} 21. Nf5 {[%clk 00:13:59]} {[%emt 00:00:28]} Bxf5 {[%clk 00:16:13]}
{[%emt 00:02:38]} 22. Rg8+ {[%clk 00:12:06]} {[%emt 00:02:03]} Bf8 {[%clk
00:16:06]} {[%emt 00:00:17]} 23. Bh6 {[%clk 00:12:07]} {[%emt 00:00:09]} Nd7
{[%clk 00:15:49]} {[%emt 00:00:28]} 24. Rf1 {[%clk 00:11:46]} {[%emt 00:00:30]}
Qe7 {[%clk 00:15:23]} {[%emt 00:00:37]} 25. Rxf5 {[%clk 00:11:03]} {[%emt
00:00:53]} O-O-O {[%clk 00:15:06]} {[%emt 00:00:27]} 26. Bg5 {[%clk 00:10:40]}
{[%emt 00:00:32]} Qh7 {[%clk 00:14:26]} {[%emt 00:00:50]} 27. Bxd8 {[%clk
00:10:02]} {[%emt 00:00:48]} Qxg8 {[%clk 00:12:56]} {[%emt 00:01:40]} 28. Ba5
{[%clk 00:09:13]} {[%emt 00:00:59]} Rd4 {[%clk 00:11:49]} {[%emt 00:01:18]} 29.
Qf2 {[%clk 00:08:47]} {[%emt 00:00:35]} Bh6+ {[%clk 00:11:21]} {[%emt
00:00:38]} 30. Kb1 {[%clk 00:08:33]} {[%emt 00:00:24]} b6 {[%clk 00:11:09]}
{[%emt 00:00:23]} 31. Bxb6 {[%clk 00:08:18]} {[%emt 00:00:24]} Nxb6 {[%clk
00:11:10]} {[%emt 00:00:09]} 32. Rf6 {[%clk 00:08:00]} {[%emt 00:00:29]} Rf4
{[%clk 00:08:52]} {[%emt 00:02:27]} 33. Rxf4 {[%clk 00:06:41]} {[%emt
00:01:29]} Bxf4 {[%clk 00:08:57]} {[%emt 00:00:05]} 34. Qh4 {[%clk 00:06:12]}
{[%emt 00:00:38]} Qg1+ {[%clk 00:08:14]} {[%emt 00:00:54]} 35. Kc2 {[%clk
00:05:58]} {[%emt 00:00:24]} Qc1+ {[%clk 00:08:16]} {[%emt 00:00:09]} 36. Kd3
{[%clk 00:05:54]} {[%emt 00:00:12]} Qe3+ {[%clk 00:08:18]} {[%emt 00:00:09]} 37.
Kc2 {[%clk 00:05:49]} {[%emt 00:00:15]} Qd2+ {[%clk 00:08:22]} {[%emt
00:00:06]} 0-1